bitfinex/quotes_BTCUSD_20260315
["timestamp","ask_amount","ask_price","bid_price","bid_amount"]
[1773563090396,0.40871805,71634.0,71625.0,0.06971013]
[1773563092274,0.40871805,71634.0,71625.0,0.16851289]
[1773563094259,0.40871805,71634.0,71625.0,0.06971013]
[1773563094499,0.40871805,71634.0,71626.0,0.09880276]
[1773563095278,0.39571805,71634.0,71626.0,0.09880276]
[1773563097007,0.39571805,71634.0,71627.0,0.06980607]
[1773563099099,0.39571805,71634.0,71626.0,0.06980607]
[1773563099320,0.39571805,71634.0,71627.0,0.09880276]
[1773563100100,0.39571805,71634.0,71620.0,0.06981289]
[1773563100101,0.10260271,71633.0,71620.0,0.06981289]
[1773563100434,0.10260271,71633.0,71621.0,0.0002498]
[1773563100639,0.10260271,71633.0,71621.0,0.07006171]
[1773563103052,0.0698012,71632.0,71621.0,0.07006171]
[1773563103251,0.0697612,71632.0,71621.0,0.07006171]
[1773563103448,0.0697612,71632.0,71621.0,0.07002171]
[1773563110701,0.0357612,71632.0,71621.0,0.07002171]
[1773563111695,0.0357612,71632.0,71622.0,0.09880276]
[1773563113488,0.0357612,71632.0,71623.0,0.16861273]
[1773563114232,0.07002083,71633.0,71623.0,0.16861273]
[1773563115306,0.07002083,71633.0,71621.0,0.0002098]
[1773563115501,0.07002083,71633.0,71621.0,0.0014]
[1773563116303,0.17262354,71633.0,71621.0,0.0014]
[1773563116507,0.07002083,71633.0,71621.0,0.0014]
[1773563116710,0.10260271,71632.0,71621.0,0.0014]
[1773563117120,0.10260271,71632.0,71621.0,0.0016]
[1773563117621,0.17240489,71631.0,71622.0,0.06981095]
[1773563117932,0.06980218,71631.0,71622.0,0.06981095]
[1773563118088,0.10260271,71630.0,71622.0,0.06981095]
[1773563118951,0.10260271,71630.0,71621.0,0.0016]
[1773563119154,0.06660271,71630.0,71621.0,0.07141158]
[1773563119369,0.06980218,71631.0,71621.0,0.07141158]
[1773563121392,0.06980218,71631.0,71621.0,0.0016]
[1773563122682,0.17065505,71631.0,71621.0,0.0016]
[1773563123390,0.17065505,71631.0,71621.0,0.07141185]
[1773563123567,0.17065505,71631.0,71621.0,0.07001185]
[1773563123770,0.06980218,71631.0,71621.0,0.07141185]
[1773563123975,0.10085287,71630.0,71612.0,0.06982008]
[1773563124176,0.10085287,71628.0,71613.0,0.07001958]
[1773563124491,0.10085287,71628.0,71613.0,0.0002]
[1773563124711,0.06980607,71627.0,71613.0,0.0002]
[1773563125001,0.10085287,71626.0,71613.0,0.0002]
[1773563126759,0.05844485,71623.0,71603.0,0.0002]
[1773563126873,0.05844485,71623.0,71603.0,0.07002936]
[1773563126874,0.10085287,71622.0,71603.0,0.07002936]
[1773563127493,0.0014,71621.0,71603.0,0.07002936]
[1773563127731,0.10085287,71620.0,71603.0,0.07002936]
[1773563128106,0.10225287,71619.0,71603.0,0.07002936]
[1773563128505,0.10085287,71619.0,71603.0,0.07002936]
[1773563128707,0.06981582,71617.0,71603.0,0.07002928]
[1773563129107,0.06981343,71620.0,71604.0,0.09681918]
[1773563129312,0.06981286,71621.0,71604.0,0.09681918]
[1773563130830,0.06981286,71621.0,71605.0,0.06982752]
[1773563131042,0.06981286,71621.0,71606.0,0.09681918]
[1773563131826,0.05781286,71621.0,71606.0,0.09681918]
[1773563136453,0.05781286,71621.0,71607.0,0.06982557]
[1773563136881,0.05781286,71621.0,71608.0,0.0014]
[1773563137246,0.05781286,71621.0,71607.0,0.06982557]
[1773563137499,0.05781286,71621.0,71608.0,0.0014]
[1773563138199,0.05781286,71621.0,71607.0,0.06982557]
[1773563138363,0.05781286,71621.0,71608.0,0.0014]
[1773563138695,0.05781286,71621.0,71607.0,0.06982557]
[1773563138989,0.05781286,71621.0,71606.0,0.0002]
[1773563138990,0.10085287,71619.0,71606.0,0.0002]
[1773563139802,0.08485287,71619.0,71603.0,0.0002]
[1773563140043,0.08485287,71619.0,71601.0,0.06983131]
[1773563140400,0.10085287,71617.0,71600.0,0.0699614]
[1773563140601,0.10085287,71615.0,71600.0,0.0699614]
[1773563142845,0.17067162,71614.0,71600.0,0.0001295]
[1773563143647,0.17067162,71614.0,71603.0,0.0002]
[1773563146358,0.10085287,71613.0,71603.0,0.0002]
[1773563146721,0.17067357,71612.0,71603.0,0.0002]
[1773563147332,0.08185287,71611.0,71600.0,0.0001295]
[1773563148268,0.08330691,71609.0,71600.0,0.0001295]
[1773563148582,0.08330691,71609.0,71598.0,0.0002]
[1773563148962,0.0698246,71608.0,71598.0,0.0002]
[1773563149871,0.0698246,71608.0,71600.0,0.0002]
[1773563150073,0.0698246,71608.0,71598.0,0.0002]
[1773563150242,0.0698246,71608.0,71600.0,0.00010702]
[1773563150393,0.0698246,71608.0,71598.0,0.0002]
[1773563150593,0.0698246,71608.0,71598.0,0.00030712]
[1773563151835,0.0698246,71608.0,71595.0,0.01486715]
[1773563152152,0.06993158,71608.0,71595.0,0.01486715]
[1773563152645,0.06993158,71608.0,71593.0,0.0001295]
[1773563152874,0.08150194,71607.0,71593.0,0.0001295]
[1773563153155,0.06982655,71606.0,71593.0,0.0001295]
[1773563153603,0.08164307,71605.0,71593.0,0.0001295]
[1773563153738,0.06982655,71606.0,71593.0,0.0001295]
[1773563155142,0.04982655,71606.0,71593.0,0.0001295]
[1773563155334,0.06993158,71608.0,71593.0,0.0001295]
[1773563155335,0.06983045,71602.0,71593.0,0.0001295]
[1773563155522,0.06983045,71602.0,71592.0,0.0002]
[1773563155523,0.0014,71601.0,71592.0,0.0002]
[1773563156512,0.06983045,71603.0,71593.0,0.09331267]
[1773563156693,0.06982865,71604.0,71593.0,0.09331267]
[1773563156893,0.06982865,71604.0,71593.0,0.09471267]
[1773563157664,0.06982865,71604.0,71594.0,0.09331267]
[1773563159458,0.06982865,71604.0,71578.0,0.09351267]
[1773563159459,0.06987997,71603.0,71578.0,0.09351267]
[1773563159741,0.06987997,71603.0,71578.0,0.0016]
[1773563159742,0.05852965,71600.0,71578.0,0.0016]
[1773563159938,0.05852965,71600.0,71581.0,0.09331267]
[1773563160488,0.05852965,71600.0,71582.0,0.0014]
[1773563162151,0.06983337,71599.0,71582.0,0.0014]
[1773563162348,0.0014,71598.0,71582.0,0.0014]
[1773563163306,0.0014,71598.0,71581.0,0.09331267]
[1773563163548,0.0014,71598.0,71582.0,0.0014]
[1773563163947,0.06983532,71597.0,71582.0,0.0014]
[1773563164317,0.06983532,71597.0,71581.0,0.09331267]
[1773563164516,0.06983532,71597.0,71582.0,0.0014]
[1773563165392,0.06983532,71597.0,71581.0,0.09331267]
[1773563165594,0.06983532,71597.0,71582.0,0.0014]
[1773563166347,0.06983532,71597.0,71581.0,0.09331267]
[1773563166549,0.06983532,71597.0,71584.0,0.00025]
[1773563167768,0.04983532,71597.0,71584.0,0.00025]
[1773563168371,0.04983532,71597.0,71582.0,0.0014]
[1773563168580,0.04983532,71597.0,71504.0,0.48886374]
[1773563168581,0.04983532,71597.0,71557.0,0.06987382]
[1773563168582,0.05852965,71592.0,71557.0,0.06987382]
[1773563168760,0.0384,71596.0,71557.0,0.06987382]
[1773563168761,0.0384,71596.0,71561.0,0.09331267]
[1773563168762,0.05852965,71590.0,71561.0,0.09331267]
[1773563168962,0.0014,71589.0,71563.0,0.09331267]
[1773563169158,0.0014,71588.0,71563.0,0.09331267]
[1773563169402,0.0014,71587.0,71563.0,0.09331267]
[1773563169545,0.0014,71586.0,71563.0,0.09331267]
[1773563169746,0.04983532,71597.0,71563.0,0.09331267]
[1773563169970,0.0014,71596.0,71563.0,0.09331267]
[1773563170179,0.06983727,71595.0,71564.0,0.06986753]
[1773563170362,0.05852965,71590.0,71565.0,0.09331267]
[1773563170591,0.05992965,71590.0,71565.0,0.09331267]
[1773563170796,0.06003659,71590.0,71565.0,0.09331267]
[1773563171129,0.00150694,71590.0,71565.0,0.09331267]
[1773563172450,0.06984313,71589.0,71566.0,0.06986557]
[1773563172621,0.06984313,71589.0,71567.0,0.09331267]
[1773563173742,0.06984313,71589.0,71569.0,0.09331267]
[1773563174813,0.06984313,71589.0,71570.0,0.06986167]
[1773563175006,0.06984313,71589.0,71571.0,0.09331267]
[1773563175414,0.05852965,71581.0,71569.0,0.06986169]
[1773563175724,0.05852965,71580.0,71567.0,0.0014]
[1773563176125,0.05852965,71580.0,71565.0,0.16317888]
[1773563176126,0.09813631,71580.0,71565.0,0.0014]
[1773563176327,0.05992965,71580.0,71565.0,0.0014]
[1773563176509,0.0014,71580.0,71565.0,0.09471267]
[1773563176715,0.06984313,71589.0,71565.0,0.09471267]
[1773563176935,0.0014,71588.0,71567.0,0.09331267]
[1773563177101,0.06984313,71589.0,71566.0,0.06986557]
[1773563177102,0.06984313,71589.0,71569.0,0.09331267]
[1773563177308,0.0014,71588.0,71569.0,0.09331267]
[1773563177754,0.0014,71587.0,71569.0,0.09331267]
[1773563178176,0.06984313,71589.0,71569.0,0.09331267]
[1773563178377,0.0014,71586.0,71569.0,0.09331267]
[1773563179174,0.06984313,71589.0,71569.0,0.06986214]
[1773563179330,0.0014,71586.0,71570.0,0.09331267]
[1773563179666,0.06984313,71589.0,71570.0,0.09331267]
[1773563179887,0.0014,71586.0,71570.0,0.09331267]
[1773563181866,0.06984703,71585.0,71570.0,0.09331267]
[1773563183458,0.06984703,71585.0,71568.0,0.0014]
[1773563183860,0.06984703,71585.0,71568.0,0.09072789]
[1773563184269,0.06984703,71585.0,71568.0,0.08932789]
[1773563184471,0.06984703,71585.0,71569.0,0.09072789]
[1773563185388,0.16089882,71585.0,71569.0,0.0014]
[1773563186478,0.06984703,71585.0,71569.0,0.09072789]
[1773563189986,0.06984703,71585.0,71569.0,0.0014]
[1773563190191,0.16089882,71585.0,71569.0,0.0014]
[1773563191934,0.16089882,71585.0,71563.0,0.07006838]
[1773563191935,0.09105179,71584.0,71564.0,0.0701301]
[1773563192115,0.05852965,71580.0,71565.0,0.08932789]
[1773563192320,0.05852965,71580.0,71565.0,0.08952789]
[1773563193041,0.14958144,71575.0,71564.0,0.0016631]
[1773563193201,0.09105179,71574.0,71564.0,0.0016631]
[1773563193536,0.09105179,71574.0,71563.0,1e-08]
[1773563193918,0.06985874,71573.0,71563.0,1e-08]
[1773563194257,0.09105179,71572.0,71558.0,1e-08]
[1773563194458,0.09105179,71569.0,71555.0,0.01124]
[1773563194636,0.05852965,71565.0,71555.0,0.01264]
[1773563194844,0.05852965,71565.0,71555.0,0.01124]
[1773563195614,0.05852965,71565.0,71549.0,0.0015675]
[1773563195615,0.05852965,71565.0,71549.0,1e-08]
[1773563195838,0.05852965,71560.0,71549.0,0.0893279]
[1773563196039,0.06987241,71559.0,71549.0,1e-08]
[1773563196478,0.07127241,71559.0,71549.0,1e-08]
[1773563198384,0.07127241,71559.0,71541.0,0.0014]
[1773563198385,0.09105179,71558.0,71541.0,0.0014]
[1773563198746,0.09105179,71558.0,71540.0,0.00145]
[1773563199148,0.09105179,71558.0,71540.0,5e-05]
[1773563199350,0.09105179,71558.0,71540.0,0.00145]
[1773563199549,0.09105179,71558.0,71540.0,5e-05]
[1773563199891,0.09105179,71558.0,71540.0,0.00145]
[1773563200092,0.09105179,71556.0,71540.0,0.00145]
[1773563200292,0.09105179,71556.0,71540.0,5e-05]
[1773563200494,0.09105179,71556.0,71540.0,0.00145]
[1773563200792,0.09105179,71556.0,71541.0,0.0002]
[1773563202108,0.06987631,71555.0,71541.0,0.0002]
[1773563202430,0.06986753,71564.0,71542.0,0.08932789]
[1773563202819,0.06997441,71565.0,71541.0,0.07008945]
[1773563202820,0.0014,71573.0,71551.0,0.06862935]
[1773563203024,0.0014,71573.0,71552.0,0.09072789]
[1773563203197,0.0014,71572.0,71552.0,0.09072789]
[1773563203379,0.0014,71573.0,71552.0,0.09072789]
[1773563204118,0.06985972,71572.0,71553.0,0.06987827]
[1773563204317,0.06985972,71572.0,71554.0,0.08932789]
[1773563204630,0.06985972,71573.0,71554.0,0.08932789]
[1773563205975,0.04785972,71573.0,71554.0,0.08932789]
[1773563206187,0.06985386,71578.0,71556.0,0.08932789]
[1773563209245,0.06985386,71578.0,71558.0,0.08932789]
[1773563209407,0.06985386,71578.0,71560.0,0.08932789]
[1773563209616,0.07125386,71578.0,71560.0,0.08932789]
[1773563213343,0.07125386,71578.0,71562.0,0.09576292]
[1773563213730,0.04825386,71578.0,71562.0,0.09576292]
[1773563214640,0.04825386,71578.0,71561.0,0.06987046]
[1773563214641,0.14386447,71578.0,71563.0,0.0014]
[1773563216583,0.09561061,71577.0,71563.0,0.0014]
[1773563218687,0.06985581,71576.0,71563.0,0.07126785]
[1773563219251,0.06985581,71576.0,71563.0,0.06986785]
[1773563219452,0.06985581,71576.0,71563.0,0.07126785]
[1773563221289,0.06985581,71576.0,71563.0,0.06986785]
[1773563221629,0.05385581,71576.0,71563.0,0.07126785]
[1773563223835,0.05385581,71576.0,71564.0,0.09576292]
[1773563224662,0.05525581,71576.0,71564.0,0.09576292]
[1773563225106,0.05385581,71576.0,71564.0,0.09576292]
[1773563225414,0.05525581,71576.0,71564.0,0.09576292]
[1773563225615,0.05385581,71576.0,71564.0,0.09576292]
[1773563226155,0.0014,71577.0,71565.0,0.06986655]
[1773563226347,0.0014,71577.0,71565.0,0.16562947]
[1773563226777,0.04825386,71578.0,71565.0,0.16562947]
[1773563226976,0.04825386,71578.0,71565.0,0.06986655]
[1773563227178,0.04685386,71578.0,71565.0,0.06986655]
[1773563227491,0.04825386,71578.0,71565.0,0.06986655]
[1773563227719,0.14246447,71578.0,71565.0,0.06986655]
[1773563227907,0.14408448,71578.0,71565.0,0.06986655]
[1773563228053,0.14408448,71578.0,71565.0,0.06942006]
[1773563228258,4.287e-05,71577.0,71564.0,0.06986753]
[1773563229294,0.12612735,71578.0,71564.0,0.06986753]
[1773563230501,0.12612735,71578.0,71564.0,0.07126753]
[1773563234782,0.12612735,71578.0,71564.0,0.06986753]
[1773563235002,0.12612735,71578.0,71564.0,0.07126753]
[1773563235646,0.09561061,71577.0,71564.0,0.06986753]
[1773563236479,0.09561061,71577.0,71551.0,0.20918148]
[1773563236665,0.05855453,71570.0,71555.0,0.0698763]
[1773563236962,0.05855453,71570.0,71563.0,0.0002]
[1773563237324,0.0014,71569.0,71555.0,0.0002]
[1773563237523,0.0014,71569.0,71556.0,0.07007519]
[1773563237759,0.0014,71569.0,71557.0,0.09576292]
[1773563238154,0.2094608,71576.0,71557.0,0.09576292]
[1773563238487,0.14100499,71575.0,71557.0,0.09576292]
[1773563238645,0.20946275,71574.0,71557.0,0.09576292]
[1773563238815,0.07125776,71574.0,71559.0,0.09576292]
[1773563239026,0.21082777,71574.0,71559.0,0.09576292]
[1773563239229,0.07125776,71574.0,71559.0,0.09576292]
[1773563239467,0.0014,71573.0,71559.0,0.09576292]
[1773563240746,0.06985972,71572.0,71559.0,0.09576292]
[1773563242009,0.05785972,71572.0,71559.0,0.09576292]
[1773563243591,0.05785972,71572.0,71560.0,0.09084483]
[1773563245354,0.05785972,71572.0,71561.0,0.09084483]
[1773563248921,0.05785972,71572.0,71561.0,0.16071498]
[1773563249127,0.05785972,71572.0,71561.0,0.06987015]
[1773563249374,0.05785972,71572.0,71562.0,0.09084483]
[1773563249881,0.03785972,71572.0,71562.0,0.09084483]
[1773563250242,0.06985484,71577.0,71562.0,0.16071418]
[1773563250448,0.0014,71576.0,71563.0,0.09084483]
[1773563250869,0.0014,71575.0,71563.0,0.09084483]
[1773563251247,0.06985484,71577.0,71563.0,0.09084483]
[1773563251449,0.0014,71576.0,71563.0,0.09084483]
[1773563251850,0.0014,71575.0,71564.0,0.09084483]
[1773563252283,0.06985484,71577.0,71564.0,0.09084483]
[1773563252489,0.0014,71575.0,71564.0,0.09084483]
[1773563253279,0.06985484,71577.0,71564.0,0.09084483]
[1773563253485,0.0014,71576.0,71564.0,0.09084483]
[1773563254287,0.06985679,71575.0,71564.0,0.16071173]
[1773563254476,0.06985679,71575.0,71565.0,0.09084483]
[1773563255482,0.0700768,71575.0,71565.0,0.09084483]
[1773563257408,0.0520768,71575.0,71565.0,0.09084483]
[1773563259288,0.0520768,71575.0,71566.0,0.09084483]
[1773563260810,0.06985581,71577.0,71566.0,0.09084483]
[1773563261542,0.06985581,71577.0,71568.0,0.09084483]
[1773563263854,0.00022001,71578.0,71570.0,0.09084483]
[1773563264484,0.07007399,71578.0,71570.0,0.09084483]
[1773563265131,0.06207399,71578.0,71570.0,0.09084483]
[1773563267841,0.00022001,71580.0,71572.0,0.09084483]
[1773563268069,0.06998056,71583.0,71572.0,0.09084483]
[1773563269942,0.0001314,71583.0,71574.0,0.09084483]
[1773563271191,0.00044617,71583.0,71574.0,0.09084483]
[1773563272637,0.06984996,71582.0,71574.0,0.09084483]
[1773563272771,0.05584996,71582.0,71574.0,0.09084483]
[1773563278864,0.07029517,71583.0,71575.0,0.06985679]
[1773563279301,0.00022001,71582.0,71574.0,0.16070258]
[1773563279636,0.06985093,71581.0,71574.0,0.16070258]
[1773563280530,0.06185093,71581.0,71574.0,0.16070258]
[1773563280947,0.06185093,71581.0,71573.0,0.09187066]
[1773563283653,0.06185093,71581.0,71574.0,0.06985776]
[1773563284331,0.07007012,71582.0,71574.0,0.16172842]
[1773563285814,0.00022001,71582.0,71574.0,0.06985776]
[1773563286013,0.00022001,71582.0,71575.0,0.09187066]
[1773563286533,0.00044617,71583.0,71575.0,0.09187066]
[1773563287264,0.07029519,71583.0,71575.0,0.09187066]
[1773563288007,0.07029519,71583.0,71575.0,0.16172657]
[1773563288202,0.05229519,71583.0,71575.0,0.16172657]
[1773563289266,0.06984706,71585.0,71575.0,0.16172657]
[1773563289267,0.06984706,71585.0,71576.0,0.09187066]
[1773563289441,0.06992679,71585.0,71576.0,0.09187066]
[1773563291158,0.06992679,71585.0,71576.0,0.16172632]
[1773563291556,0.07041259,71585.0,71576.0,0.16172632]
[1773563293967,0.07041259,71585.0,71578.0,0.09187066]
[1773563294743,0.07041259,71585.0,71577.0,0.0014]
[1773563294982,0.07041259,71585.0,71576.0,0.06985566]
[1773563295184,0.07041259,71585.0,71577.0,0.0014]
[1773563295892,0.05241259,71585.0,71577.0,0.0014]
[1773563296495,0.05241259,71585.0,71576.0,0.06985566]
[1773563296663,0.05241259,71585.0,71577.0,0.0014]
[1773563298467,0.05241259,71585.0,71576.0,0.06985566]
[1773563298667,0.05241259,71585.0,71577.0,0.0014]
[1773563300006,0.05241259,71585.0,71576.0,0.06985566]
[1773563300184,0.05241259,71585.0,71577.0,0.0014]
[1773563300987,0.05241259,71585.0,71576.0,0.06985566]
[1773563301204,0.05241259,71585.0,71577.0,0.0014]
[1773563301730,0.0526326,71585.0,71576.0,0.0014]
[1773563303682,0.0356326,71585.0,71576.0,0.0014]
[1773563304536,0.0356326,71585.0,71574.0,0.06985685]
[1773563304731,0.0356326,71585.0,71576.0,0.0014]
[1773563306110,0.0356326,71585.0,71575.0,0.0014]
[1773563306626,0.0356326,71585.0,71574.0,0.15527469]
[1773563306826,0.0356326,71585.0,71575.0,0.0014]
[1773563307226,0.0356326,71585.0,71576.0,0.0014]
[1773563307628,0.0356326,71585.0,71574.0,0.06985685]
[1773563307951,0.0356326,71585.0,71575.0,0.0014]
[1773563308155,0.0356326,71585.0,71574.0,0.06985685]
[1773563308352,0.0356326,71585.0,71576.0,0.0014]
[1773563308757,0.0356326,71585.0,71574.0,0.07125685]
[1773563309128,0.0356326,71585.0,71575.0,0.08541784]
[1773563309328,0.0356326,71585.0,71575.0,0.08681784]
[1773563310226,0.0356326,71585.0,71576.0,0.06985581]
[1773563310431,0.0356326,71585.0,71576.0,0.07125581]
[1773563310763,0.0356326,71585.0,71576.0,0.06985581]
[1773563310942,0.0356326,71585.0,71576.0,0.07125581]
[1773563311345,0.0246326,71585.0,71576.0,0.07125581]
[1773563311757,0.0246326,71585.0,71577.0,0.15527231]
[1773563312826,0.0246326,71585.0,71577.0,0.15667231]
[1773563313237,0.0246326,71585.0,71577.0,0.15527231]
[1773563313436,0.0246326,71585.0,71577.0,0.15667231]
[1773563314748,0.0246326,71585.0,71577.0,0.15527231]
[1773563314951,0.0246326,71585.0,71577.0,0.15667231]
[1773563315762,0.0246326,71585.0,71577.0,0.15527231]
[1773563315969,0.0246326,71585.0,71577.0,0.15667231]
[1773563316169,0.0246326,71585.0,71577.0,0.15527231]
[1773563316469,0.0246326,71585.0,71577.0,0.15667231]
[1773563316826,0.0246326,71585.0,71577.0,0.15527231]
[1773563317056,0.0246326,71585.0,71577.0,0.15667231]
[1773563319034,0.00078554,71585.0,71577.0,0.15667231]
[1773563319266,0.0706326,71585.0,71577.0,0.07125447]
[1773563319467,0.0706326,71585.0,71578.0,0.08541784]
[1773563322136,0.0706326,71585.0,71578.0,0.15527168]
[1773563324303,0.06984706,71585.0,71578.0,0.15527168]
[1773563325947,0.00022001,71588.0,71578.0,0.06985384]
[1773563326147,0.00022001,71597.0,71578.0,0.06985384]
[1773563326149,0.07004656,71606.0,71579.0,0.0599339]
[1773563326373,0.07009142,71606.0,71580.0,0.0014]
[1773563326586,0.07009142,71606.0,71582.0,0.08541784]
[1773563326587,0.0014,71605.0,71582.0,0.08541784]
[1773563326817,0.13664627,71606.0,71582.0,0.08541784]
[1773563327068,0.0014,71604.0,71582.0,0.08541784]
[1773563327285,0.13664627,71606.0,71582.0,0.08541784]
[1773563327502,0.0014,71603.0,71582.0,0.08541784]
[1773563327720,0.13664627,71606.0,71582.0,0.08541784]
[1773563327948,0.0014,71602.0,71582.0,0.08641784]
[1773563328169,0.13664627,71606.0,71584.0,0.08541784]
[1773563328170,0.0014,71601.0,71584.0,0.08541784]
[1773563328427,0.0014,71600.0,71584.0,0.08541784]
[1773563328768,0.0014,71599.0,71584.0,0.08541784]
[1773563329616,0.00022001,71593.0,71584.0,0.08541784]
[1773563330026,0.00022001,71593.0,71585.0,0.06984703]
[1773563330163,0.00022001,71593.0,71586.0,0.08541784]
[1773563332147,0.00022001,71593.0,71587.0,0.06984508]
[1773563334691,0.05205562,71597.0,71587.0,0.06984508]
[1773563336458,0.00022001,71593.0,71587.0,0.06984508]
[1773563338599,0.00022001,71593.0,71581.0,0.06998433]
[1773563338767,0.00022001,71593.0,71582.0,0.08582388]
[1773563341160,0.00022001,71593.0,71583.0,0.06984898]
[1773563341911,0.00022001,71593.0,71584.0,0.08582388]
[1773563342135,0.0014,71596.0,71584.0,0.08582388]
[1773563342337,0.0014,71597.0,71584.0,0.08582388]
[1773563342738,0.0014,71599.0,71584.0,0.08582388]
[1773563343471,0.00162001,71600.0,71586.0,0.08582388]
[1773563343638,0.00162001,71600.0,71586.0,0.08722388]
[1773563344767,0.07005245,71600.0,71586.0,0.08722388]
[1773563344934,0.00022001,71600.0,71586.0,0.08722388]
[1773563345140,0.07005263,71600.0,71586.0,0.08722388]
[1773563345336,0.07005263,71600.0,71587.0,0.06984508]
[1773563345642,0.00022001,71600.0,71587.0,0.06984508]
[1773563345847,0.00022001,71600.0,71588.0,0.08582388]
[1773563346262,0.0001334,71607.0,71588.0,0.08582388]
[1773563346586,0.06987189,71606.0,71588.0,0.08582388]
[1773563346790,0.0014,71605.0,71588.0,0.08582388]
[1773563346960,0.0014,71605.0,71589.0,0.0014]
[1773563347571,0.0014,71605.0,71590.0,0.06984215]
[1773563349415,0.0014,71605.0,71590.0,0.15566603]
[1773563349573,0.0014,71605.0,71590.0,0.15666603]
[1773563350101,0.00162001,71605.0,71590.0,0.15666603]
[1773563350430,0.00162001,71605.0,71590.0,0.15566603]
[1773563350727,0.00162001,71605.0,71590.0,0.15666603]
[1773563353743,0.00162001,71605.0,71589.0,0.07137555]
[1773563353744,0.00162001,71605.0,71584.0,0.0002]
[1773563353745,0.08624642,71599.0,71581.0,0.06998404]
[1773563353889,0.08624642,71590.0,71579.0,0.0698525]
[1773563354287,0.08624642,71588.0,71577.0,0.07005472]
[1773563356464,0.06984508,71587.0,71577.0,0.07005472]
[1773563357225,0.06984339,71589.0,71577.0,0.07005472]
[1773563357746,0.05484339,71589.0,71577.0,0.07005472]
[1773563358842,0.0014,71590.0,71577.0,0.07005472]
[1773563359228,0.08624642,71591.0,71577.0,0.07005472]
[1773563359429,0.0014,71590.0,71577.0,0.07005472]
[1773563359650,0.0014,71591.0,71577.0,0.07005472]
[1773563359882,0.0014,71591.0,71577.0,0.1558786]
[1773563361722,0.07124127,71591.0,71578.0,0.08941133]
[1773563363436,0.07124175,71591.0,71578.0,0.08941133]
[1773563363605,0.07124175,71591.0,71579.0,0.06985288]
[1773563364191,0.0014,71591.0,71579.0,0.06985288]
[1773563365309,0.05724031,71592.0,71579.0,0.06985288]
[1773563367240,0.08778848,71591.0,71579.0,0.06985288]
[1773563367461,0.05724031,71592.0,71577.0,0.07005472]
[1773563367462,0.08778848,71589.0,71577.0,0.07005472]
[1773563367633,0.08778848,71589.0,71577.0,0.07145472]
[1773563368235,0.08778848,71589.0,71577.0,0.07005472]
[1773563369186,0.15763258,71588.0,71577.0,0.07005472]
[1773563369341,0.15763258,71588.0,71577.0,0.06970472]
[1773563369881,0.15763258,71588.0,71577.0,0.06900472]
[1773563371075,0.08778848,71587.0,71574.0,0.06999104]
[1773563371267,0.08778848,71587.0,71575.0,0.0014]
[1773563371588,0.08778848,71587.0,71574.0,0.06999104]
[1773563371815,0.08778848,71587.0,71577.0,0.0002]
[1773563372169,0.15763443,71587.0,71578.0,0.06985386]
[1773563373026,0.14263443,71587.0,71578.0,0.06985386]
[1773563373450,0.07124595,71587.0,71570.0,0.08941133]
[1773563375217,0.15903443,71587.0,71571.0,0.06986069]
[1773563380682,0.08778848,71586.0,71571.0,0.06986069]
[1773563380990,0.06278848,71586.0,71571.0,0.06986069]
[1773563382119,0.06984703,71585.0,71571.0,0.06986069]
[1773563384250,0.06984703,71585.0,71571.0,0.15927202]
[1773563384856,0.06984703,71585.0,71569.0,0.07006069]
[1773563385059,0.08778848,71584.0,71569.0,0.07006069]
[1773563385264,0.08778848,71584.0,71570.0,0.0002]
[1773563386265,0.06984898,71583.0,71570.0,0.07041807]
[1773563388524,0.06984898,71584.0,71570.0,0.07041807]
[1773563388836,0.08778848,71583.0,71570.0,0.0005569]
[1773563389722,0.08778848,71583.0,71567.0,0.0016]
[1773563390023,0.08778848,71583.0,71567.0,0.07146443]
[1773563390024,0.08814525,71583.0,71567.0,0.07146443]
[1773563390800,0.06984996,71582.0,71567.0,0.07146443]
[1773563396331,0.04984996,71582.0,71567.0,0.07146443]
[1773563397359,0.04984996,71582.0,71567.0,0.15409537]
[1773563397586,0.04984996,71582.0,71568.0,0.08263094]
[1773563398531,0.04984996,71582.0,71568.0,0.15249408]
[1773563400020,0.04984996,71582.0,71569.0,0.0014]
[1773563403928,0.03184996,71582.0,71569.0,0.0014]
[1773563404127,0.0815138,71581.0,71568.0,0.06986314]
[1773563404337,0.0814738,71581.0,71568.0,0.06986314]
[1773563405114,0.0828738,71581.0,71568.0,0.06986314]
[1773563405321,0.0014,71581.0,71567.0,0.07146458]
[1773563405928,0.06985191,71580.0,71567.0,0.07146458]
[1773563411634,0.05785191,71580.0,71567.0,0.07146458]
[1773563413119,0.05785191,71580.0,71562.0,0.0002]
[1773563413120,0.05785191,71580.0,71542.0,0.06988803]
[1773563413121,0.05854237,71577.0,71542.0,0.06988803]
[1773563413294,0.393474,71579.0,71543.0,0.09098636]
[1773563413295,0.05854237,71570.0,71543.0,0.09098636]
[1773563413494,0.15242743,71580.0,71543.0,0.09098636]
[1773563413735,0.06985386,71578.0,71545.0,0.08958636]
[1773563413901,0.05854237,71570.0,71545.0,0.08958636]
[1773563414094,0.0014,71569.0,71545.0,0.08958636]
[1773563414666,0.05854237,71570.0,71545.0,0.08958636]
[1773563414668,0.0014,71568.0,71545.0,0.08958636]
[1773563415074,0.05854237,71570.0,71545.0,0.08958636]
[1773563415264,0.0014,71567.0,71545.0,0.08958636]
[1773563415550,0.05854237,71570.0,71545.0,0.08958636]
[1773563415753,0.06986362,71568.0,71546.0,0.0698851]
[1773563415954,0.06986362,71568.0,71547.0,0.08958636]
[1773563416404,0.0014,71567.0,71547.0,0.08958636]
[1773563416896,0.06986362,71568.0,71547.0,0.08958636]
[1773563417070,0.0014,71566.0,71547.0,0.08958636]
[1773563417454,0.0014,71567.0,71547.0,0.08958636]
[1773563417850,0.06986362,71568.0,71548.0,0.06988315]
[1773563418040,0.0014,71567.0,71549.0,0.09098636]
[1773563418489,0.0014,71566.0,71549.0,0.09098636]
[1773563419116,0.06986362,71568.0,71549.0,0.09098636]
[1773563419423,0.06986362,71568.0,71549.0,0.08958636]
[1773563419598,0.0014,71567.0,71549.0,0.09098636]
[1773563419897,0.06986362,71568.0,71549.0,0.09098636]
[1773563419898,0.06986362,71568.0,71550.0,0.0698812]
[1773563420077,0.0014,71566.0,71550.0,0.0698812]
[1773563422890,0.06986655,71565.0,71550.0,0.0698812]
[1773563423312,0.06986655,71565.0,71551.0,0.09819943]
[1773563425772,0.06986655,71565.0,71552.0,0.06987924]
[1773563425974,0.0014,71568.0,71554.0,0.09819943]
[1773563426225,0.06986096,71571.0,71556.0,0.09819943]
[1773563426469,0.0014,71569.0,71556.0,0.09819943]
[1773563426831,0.07126096,71571.0,71556.0,0.09819943]
[1773563427749,0.04826096,71571.0,71556.0,0.09819943]
[1773563428246,0.0014,71571.0,71558.0,0.09819943]
[1773563430463,0.06986167,71570.0,71558.0,0.16807249]
[1773563433003,0.12840404,71570.0,71556.0,0.06987534]
[1773563433924,0.12840404,71570.0,71557.0,0.0014]